Cogmind - Beta 15 @@@ ROGUE MODE // 2025.06.03 @ 21:32:05 Player: 7604 Result: Destroyed by P-70 Sage with Tesla Rifle Performance ------------- Evolutions (5) 2500 Regions Visited (14) 2800 Robots Destroyed (211) 1055 Value Destroyed (6598) 6598 Prototype IDs (47) 940 Alien Tech Used (1) 200 Bonus (1728) 1728 TOTAL SCORE: 15821 Bonus ------- High Alert Combat Kills 123 Follower Combat Kills 805 Registered with UFD 300 Met Optimus in HQ 500 Cogmind --------- Core Integrity 0/1000 Matter 121/300 Energy 99/100 System Corruption 20% Temperature Cool (0) Movement Core (50) Location -5/Upper Caves Parts ------- > --- POWER (2) -------- (None) > --- PROPULSION (4) --- (None) > --- UTILITY (9) ------ Machine Analyzer Advanced Terrain Scan Processor Improved Targeting Computer > --- WEAPON (2) ------- (None) > --- INVENTORY (5) ---- Makeshift ECM Suite HERF Cannon Junk Cannon (1) Lance Peak State ------------ > --- POWER ------------ Fission Core Cooled Fission Core > --- PROPULSION ------- Flexi-carbon Leg Improved VSS Leg Improved VSS Leg Thunder Leg > --- UTILITY ---------- Large Storage Unit Machine Analyzer Advanced Terrain Scan Processor Improved Target Analyzer Core Analyzer Improved Reaction Control System Improved Medium Armor Plating Improved Shield Generator Advanced Hacking Suite > --- WEAPON ----------- Junk Cannon > --- INVENTORY -------- Angular Momentum Engine Improved VSS Leg Thunder Leg Advanced Cooling System Advanced Terrain Scanner Seismic Detector Seismic Detector Makeshift ECM Suite Improved Medium Armor Plating Authchip [Propulsion] Heavy Rocket Launcher Heavy Rocket Launcher Improved Datajack [Rating: 86] Favorites ----------- Power Improved Ion Engine Engine Improved Ion Engine Power Core Fission Core Propulsion Light Treads Treads Light Treads Leg Improved VSS Leg Wheel Wheel Utility Huge Storage Unit Device Seismic Detector Storage Huge Storage Unit Processor Core Analyzer Hackware Hacking Suite Protection Improved Medium Armor Plating Weapon Improved Medium Laser Energy Gun Improved Medium Laser Energy Cannon Light EM Pulse Cannon Ballistic Gun Assault Rifle Ballistic Cannon Light Cannon Launcher Mini Grenade Launcher Special Weapon Junk Cannon Impact Weapon Shock Maul Slashing Weapon Katana Piercing Weapon Lance Special Melee Weapon Improved Datajack Build | -11 -10 -10 -9 -9 -9 -8 -8 -7 -7 -7 -7 -5 -5 -5 ------- Run | Yrd Mat Min Mat Min Exi Min Mat Fac Sto Rec Scr Fac Upp Upp Slots Evolved 10 | . . . 2 . . . 2 2 . . . 4 . . Power 1 | . . . . . . . . . . . . 1 . . Propulsion 2 | . . . 1 . . . 1 . . . . . . . Utility 7 | . . . 1 . . . 1 2 . . . 3 . . Weapon . | . . . . . . . . . . . . . . . Parts Attached 161 | 1 10 6 27 3 . . 19 20 14 5 11 43 2 . Power 19 | . 2 1 4 . . . 2 3 1 1 1 4 . . Engine 14 | . 2 1 4 . . . 2 1 . 1 . 3 . . Core 5 | . . . . . . . . 2 1 . 1 1 . . Reactor . | . . . . . . . . . . . . . . . Propulsion 46 | . 2 2 7 1 . . 8 4 4 3 3 11 1 . Treads 31 | . 2 2 7 1 . . 8 2 1 3 3 2 . . Leg 10 | . . . . . . . . . . . . 9 1 . Wheel 5 | . . . . . . . . 2 3 . . . . . Hover . | . . . . . . . . . . . . . . . Flight . | . . . . . . . . . . . . . . . Utility 57 | 1 3 1 8 1 . . 5 5 6 1 2 24 . . Device 22 | 1 1 . 2 . . . 2 2 3 . 2 9 . . Storage 6 | . 2 . 1 . . . 1 . . 1 . 1 . . Processor 7 | . . . . . . . 1 . 1 . . 5 . . Hackware 8 | . . . . . . . . 2 . . . 6 . . Protection 14 | . . 1 5 1 . . 1 1 2 . . 3 . . Artifact . | . . . . . . . . . . . . . . . Weapon 39 | . 3 2 8 1 . . 4 8 3 . 5 4 1 . Energy Gun 12 | . 1 . 4 . . . 3 2 1 . 1 . . . Energy Cannon 2 | . . . 1 . . . . . . . 1 . . . Ballistic Gun 7 | . 1 . . . . . . 1 2 . 1 1 1 . Ballistic Cannon 6 | . . 2 1 . . . . 3 . . . . . . Launcher 5 | . . . 2 . . . . 1 . . 1 1 . . Special Weapon 2 | . 1 . . . . . . . . . 1 . . . Impact Weapon 1 | . . . . . . . . . . . . 1 . . Slashing Weapon 1 | . . . . . . . 1 . . . . . . . Piercing Weapon 1 | . . . . . . . . . . . . 1 . . Special Melee Weapon 2 | . . . . 1 . . . 1 . . . . . . Unidentified Prototypes 13 | . . . 3 . . . 3 2 . . 1 3 1 . Corrupted Parts 3 | . . . . . . . . . . . . 3 . . System Corruption 7 | . . . . . . . . . . . . 7 . . Parts Lost 62 | . 2 2 5 2 . . 3 11 15 . . 17 . 5 Power 8 | . 1 . 2 . . . . 3 1 . . 1 . . Propulsion 20 | . . 1 . 1 . . 3 5 5 . . 4 . 1 Utility 23 | . . . 1 1 . . . . 7 . . 11 . 3 Weapon 11 | . 1 1 2 . . . . 3 2 . . 1 . 1 Highest Loss Streak 13 | . 1 2 1 2 . . 1 6 13 . . 12 . 3 To Critical Strikes 1 | . . . . . . . . 1 . . . . . . Average Backups 20 | 6 9 16 24 23 22 22 24 23 21 24 24 15 3 3 Power 1 | 1 1 2 3 1 1 1 1 . . 1 1 . . . Propulsion 2 | 4 . 4 5 5 5 5 3 1 . . 1 1 . . Utility 9 | . 1 3 5 6 6 6 10 11 12 17 16 8 1 . Weapon 6 | 1 4 6 8 8 8 8 8 8 6 5 4 2 2 3 Tool/Special . | . . . . . . . . . . . . . . . Unused Backups 52 | 6 5 1 8 . . 1 6 2 . 3 8 10 . 2 Power 6 | 1 . . 3 . . . 1 . . . 1 . . . Propulsion 14 | 2 4 . 2 . . . 2 . . . 1 3 . . Utility 18 | 1 1 . 1 . . . 1 2 . 2 5 5 . . Weapon 12 | 2 . 1 2 . . 1 1 . . 1 1 1 . 2 Tool/Special 2 | . . . . . . . 1 . . . . 1 . . Average Slot Usage (%) 96 | . 99 99 99 99 100 100 99 97 83 94 95 92 41 39 Engine 7 | . 14 14 10 11 11 11 9 6 . 3 2 2 . . Core 1 | . . . . . . . . . 5 3 4 7 . . Treads 27 | . 26 28 32 33 33 33 35 28 6 21 30 7 . . Leg 1 | . 1 . . . . . . . . . . 14 . 3 Device 14 | . 14 13 10 10 . 13 18 21 13 15 15 13 4 2 Storage 9 | . 14 14 11 11 11 11 9 7 7 7 7 4 . . Processor 4 | . . . . . . . 5 . 4 7 7 15 23 23 Hackware 3 | . . . . . . . . 14 10 7 7 8 5 3 Protection 5 | . . . 10 11 21 8 2 1 4 6 7 5 . . Energy Gun 7 | . 4 1 17 20 11 21 17 4 . . . . . . Ballistic Gun 4 | . 23 1 . . . . . . 10 14 3 . . . Ballistic Cannon 3 | . . 25 4 . . . . 8 1 . . . . . Special Melee Weapon 1 | . . . . . 10 . . . . . 3 1 4 3 Peak Build Rating 86 | 8 10 11 29 28 28 28 34 42 38 44 56 86 34 30 Average Rating 32 | 6 8 9 22 26 26 25 29 37 32 41 47 75 27 24 On Entrance 25 | 6 8 8 11 26 27 26 25 29 37 38 39 55 18 30 Naked Turns . | . . . . . . . . . . . . . . . Heaviest Build 135 | 13 90 94 109 110 107 109 110 112 102 106 114 135 7 2 Greatest Support 97 | 20 40 40 67 66 66 66 86 83 43 88 93 97 3 3 Greatest Overweight (x) 8 | . 4 2 2 1 1 1 1 6 8 5 1 2 2 . Average Overweight (x) 1 | . 1 2 1 1 1 1 1 1 4 2 1 . . . Largest Inventory Capacity 25 | 8 25 25 25 25 25 25 25 25 25 25 25 25 5 5 Average Capacity 23 | 8 23 25 25 25 25 25 25 25 25 25 25 18 5 5 Most Carried 25 | 8 15 22 25 25 23 23 25 25 25 25 25 25 5 5 Average Carried 20 | 6 9 16 24 24 22 22 24 23 21 24 24 16 4 4 Final Capacity 25 | 8 25 25 25 25 25 25 25 25 25 25 25 5 5 5 Final Carried 25 | 8 15 22 24 23 22 23 25 25 25 25 25 5 5 5 Class Distribution -------------------- 54% | Mutant 24% | Commander-Mutant 12% | Scavenger-Mutant 6% | Hacker-Mutant Dominant Class ---------------- Mutant | -10/Materials Mutant | -10/Mines Mutant | -9/Materials Mutant | -9/Mines Mutant | -9/Exiles Mutant | -8/Mines Mutant | -8/Materials Scavenger-Mutant | -7/Factory Commander-Mutant | -7/Storage Commander-Mutant | -7/Recycling Commander-Mutant | -7/Scraptown Hacker-Mutant | -5/Factory Scout | -5/Upper Caves Mutant | -5/Upper Caves Resources | -11 -10 -10 -9 -9 -9 -8 -8 -7 -7 -7 -7 -5 -5 -5 ----------- Run | Yrd Mat Min Mat Min Exi Min Mat Fac Sto Rec Scr Fac Upp Upp Matter Collected 5173 | 224 619 194 909 90 10 90 629 799 262 414 178 715 40 . Remotely . | . . . . . . . . . . . . . . . Salvage Created 8329 | 96 716 187 2155 54 . 205 1638 857 287 601 . 1533 . . Parts 397 | 10 50 7 123 5 . 14 70 41 12 27 . 38 . . Haulers Intercepted 13 | . 2 . 5 . . . 3 1 . 1 . 1 . . Recyclers Shooed 6 | 2 . . . . . . . . . 1 . 3 . . Parts Field Recycled . | . . . . . . . . . . . . . . . Retrieved Matter . | . . . . . . . . . . . . . . . Parts Self-Destructed . | . . . . . . . . . . . . . . . Prevented . | . . . . . . . . . . . . . . . Kills | -11 -10 -10 -9 -9 -9 -8 -8 -7 -7 -7 -7 -5 -5 -5 ------- Run | Yrd Mat Min Mat Min Exi Min Mat Fac Sto Rec Scr Fac Upp Upp Combat Hostiles Destroyed 145 | . 15 4 43 4 . 6 29 19 5 2 . 18 . . Melee 10 | . . . . . . . . 5 2 . . 3 . . Guns 75 | . 15 3 22 3 . 3 22 2 2 2 . 1 . . Cannons 24 | . . 1 9 . . . . 7 1 . . 6 . . AOE 24 | . . . 11 . . 3 4 5 . . . 1 . . Classes Destroyed 17 | 1 6 . 6 . . . . 2 . 1 . 1 . . Worker 9 | . . . 1 . . 1 1 5 . . . 1 . . Builder 3 | . . . 1 . . . . . . 1 . 1 . . Tunneler 8 | 4 . . 2 . . . . . . 1 . 1 . . Hauler 13 | . 2 . 5 . . . 3 1 . 1 . 1 . . Recycler 16 | . 1 1 3 . . . 2 2 . 4 . 3 . . Mechanic 1 | . . . 1 . . . . . . . . . . . Operator 5 | . 1 . 2 . . . 1 . 1 . . . . . Watcher 10 | . 2 . 4 . . . 2 2 . . . . . . Swarmer 26 | . 3 3 6 3 . 3 4 4 . . . . . . Grunt 65 | . 12 1 22 . . 2 16 7 2 1 . 2 . . Brawler 4 | . . . 2 . . . 1 1 . . . . . . Duelist 5 | . . . 3 . . 1 1 . . . . . . . Protector 1 | . . . . . . . . . . 1 . . . . Sentry 23 | . . . 10 . . . 7 1 3 1 . 1 . . Specialist 2 | . . . . . . . . . . . . 2 . . Hunter 12 | . . . . . . . . 3 . . . 9 . . Programmer 7 | . . . . . . . . 3 . . . 4 . . Best Kill Streak 6 | 1 4 3 6 2 . 4 4 6 3 3 . 4 . . Combat Bots Only 6 | . 3 3 6 2 . 3 4 4 3 1 . 3 . . Max Kills in Single Turn 4 | 1 1 1 4 1 . 2 4 3 1 2 . 1 . . Gunslinging . | . . . . . . . . . . . . . . . Exploded 4 | . . . 3 . . 2 4 3 . . . 1 . . Melee 1 | . . . . . . . . 1 1 . . 1 . . Uniques/NPCs Destroyed 1 | . . . . 1 . . . . . . . . . . YI-UF0 (-9/Mines) Combat | -11 -10 -10 -9 -9 -9 -8 -8 -7 -7 -7 -7 -5 -5 -5 -------- Run | Yrd Mat Min Mat Min Exi Min Mat Fac Sto Rec Scr Fac Upp Upp Hostile Shots Fired 1180 | . 92 30 167 25 . 17 93 174 266 18 . 270 . 28 Missed 370 | . 20 8 60 8 . 2 27 50 81 6 . 98 . 10 Hits 810 | . 72 22 107 17 . 15 66 124 185 12 . 172 . 18 Melee 16 | . . . 10 . . 1 4 1 . . . . . . Projectile 794 | . 72 22 97 17 . 14 62 123 185 12 . 172 . 18 AOE 12 | . . . . 11 . . . . . . . 1 . . Critical Strikes 22 | . 2 . 4 . . . 5 5 . . . 4 . 2 Part Disruptions 1 | . . . . . . . . 1 . . . . . . Damage Taken 11786 | . 809 215 1675 406 . 227 1078 2227 1553 127 . 3113 . 356 Core 2032 | . 156 30 289 31 . . 117 86 310 11 . 788 . 214 Absorbed by Shields 519 | . . . . . . . . . . . . 519 . . Regen/Repaired (Parts) 612 | . 109 . . . . . 308 195 . . . . . . Core Remaining (%) 52 | 100 . 25 . . . 20 78 . . . 41 . . . Volleys Fired 484 | 16 76 14 127 14 . 10 91 40 15 14 . 57 10 . Largest 2 | 2 2 2 2 2 . 2 2 2 2 2 . 1 1 . Hottest 121 | 40 100 60 121 112 . 112 117 117 56 53 . 33 30 . Shots Fired 857 | 32 150 26 243 22 . 18 180 72 20 28 . 57 9 . Gun 663 | 32 148 17 182 16 . 16 178 22 12 28 . 4 8 . Cannon 118 | . . 9 50 6 . . . 45 8 . . . . . Launcher 17 | . . . 8 . . 2 2 5 . . . . . . Special 59 | . 2 . 3 . . . . . . . . 53 1 . Kinetic 320 | 32 117 16 50 . . . . 45 20 28 . 4 8 . Thermal 460 | . 33 10 185 16 . 16 178 22 . . . . . . Explosive 17 | . . . 8 . . 2 2 5 . . . . . . Electromagnetic 6 | . . . . 6 . . . . . . . . . . Impact 54 | . . . . . . . . . . . . 53 1 . Robot Hit Streak 28 | 4 13 7 12 6 . 14 28 9 5 8 . 8 . . Robot Miss Streak 5 | 3 4 2 3 3 . 2 3 4 5 1 . 3 . . Penetration Max 1 | . . . . . . . . . . . . 1 . . Secondary Targets 5 | . . 1 1 . . 1 2 . . . . . . . Max Gunslinging Chain 1 | . . 1 1 . . 1 1 . . . . . . . Shots Hit Robots 632 | 19 104 19 156 12 4 15 139 61 28 17 3 55 . . Core Hits 273 | 4 36 7 75 3 . 10 60 41 10 13 . 14 . . Critical Kills 1 | . . . . . . . . . . 1 . . . . Critical Parts Destroyed 8 | . . . . . . . . . . . . 8 . . Critical Strikes 43 | . . . 7 . . 1 16 4 4 1 . 10 . . Burn 24 | . . . 7 . . 1 16 . . . . . . . Destroy 1 | . . . . . . . . . . 1 . . . . Blast 1 | . . . . . . . . 1 . . . . . . Smash 8 | . . . . . . . . . . . . 8 . . Sever 7 | . . . . . . . . 3 4 . . . . . Impale 2 | . . . . . . . . . . . . 2 . . Melee Attacks 77 | . . . . 1 4 . 1 24 17 1 3 26 . . Impact . | . . . . . . . . . . . . . . . Slashing 40 | . . . . . . . 1 22 17 . . . . . Piercing 25 | . . . . . . . . . . . . 25 . . Sneak Attacks 20 | . . . . 1 4 . . 7 . 1 3 4 . . Combat Hostiles . | . . . . . . . . . . . . . . . Follow-up Attacks . | . . . . . . . . . . . . . . . Damage Inflicted 16689 | 246 1340 284 3865 199 . 455 2640 2486 767 436 . 3971 . . Guns 7566 | 246 1270 137 2224 102 . 244 2434 327 127 360 . 95 . . Cannons 1696 | . . 120 608 97 . . . 707 164 . . . . . Explosions 2049 | . . . 970 . . 197 192 623 . . . 67 . . Melee 1778 | . . . . . . . . 772 461 . . 545 . . Ramming 465 | . 70 27 63 . . 14 14 57 15 76 . 129 . . Kinetic 3525 | 246 1049 169 608 . . . . 707 291 360 . 95 . . Thermal 5959 | . 221 88 2360 102 . 244 2434 443 . . . 67 . . Explosive 1730 | . . . 834 . . 197 192 507 . . . . . . Electromagnetic 97 | . . . . 97 . . . . . . . . . . Impact 3135 | . . . . . . . . . . . . 3135 . . Slashing 1233 | . . . . . . . . 772 461 . . . . . Piercing 545 | . . . . . . . . . . . . 545 . . Highest Corruption 20 | . 2 2 . . . . 1 10 14 14 . 20 20 20 Average Corruption 6 | . 2 2 . . . . 1 8 12 14 . 6 20 20 Corruption Purged . | . . . . . . . . . . . . . . . Corruption Blocked . | . . . . . . . . . . . . . . . Effects 249 | . 17 26 . . . . 10 47 22 80 . 25 12 10 Message Errors 48 | . 3 4 . . . . 1 7 5 16 . 6 4 2 Matter Fused 72 | . 3 9 . . . . 5 16 5 27 . 3 1 3 Heat Flow Errors 25 | . 3 2 . . . . 1 1 4 8 . 2 2 2 Energy Discharges 33 | . 4 2 . . . . 1 7 4 11 . 1 3 . Parts Rejected 3 | . . 1 . . . . . . . 1 . 1 . . Parts Fused 3 | . . . . . . . . . . 1 . 2 . . Data Loss (minor) 25 | . . 6 . . . . 1 5 . 7 . 5 1 . Data Loss (major) 12 | . 3 1 . . . . . 3 . 3 . 1 . 1 Misfires 8 | . 1 1 . . . . . 3 2 1 . . . . Alerts 12 | . . . . . . . 1 5 1 3 . 2 . . Misdirections 5 | . . . . . . . . . . 1 . 2 . 2 Weapon Failures 3 | . . . . . . . . . 1 1 . . 1 . Overload Shots . | . . . . . . . . . . . . . . . Overflow Damage 1867 | . . . 64 . . . . 168 . . . 1635 . . Projectiles 1529 | . . . . . . . . 30 . . . 1499 . . Explosions 233 | . . . 64 . . . . 103 . . . 66 . . Melee 105 | . . . . . . . . 35 . . . 70 . . Knockbacks 39 | . . 4 7 . . . . 5 . . . 23 . . Impact 24 | . . 1 1 . . . . . . . . 22 . . Kinetic 13 | . . 3 5 . . . . 5 . . . . . . Secondary 2 | . . . 1 . . . . . . . . 1 . . Self-Inflicted Damage 664 | . . . 145 . . . . 347 7 . . 165 . . Shots 9 | . . . 2 . . . . 5 . . . 2 . . Rammed 34 | . 9 4 4 . . 1 1 7 1 5 . 2 . . Targets Rammed 51 | . 10 4 5 . . 1 3 10 1 6 . 11 . . Kicked 8 | . . . . . . . . . . . . 8 . . Crushed 9 | . 1 . 1 . . . 2 3 . 1 . 1 . . Highest Temperature 315 | . 289 279 315 281 . 219 202 97 204 220 . 202 223 205 Average Temperature 67 | . 74 102 62 109 . 143 20 50 73 93 . 95 103 91 Received Heat Transfer 2936 | . 450 27 558 . . 90 531 519 501 48 . 110 . 102 Effects 2 | . . 1 . 1 . . . . . . . . . . Energy Bleed 1 | . . 1 . . . . . . . . . . . . Interference 1 | . . . . 1 . . . . . . . . . . Siege Activations . | . . . . . . . . . . . . . . . Martial Activations . | . . . . . . . . . . . . . . . Shielding Activations . | . . . . . . . . . . . . . . . Robots Disrupted . | . . . . . . . . . . . . . . . Combat Hostiles . | . . . . . . . . . . . . . . . Robots Corrupted 11 | . . . . 1 . . . . . . . 10 . . Combat Hostiles 8 | . . . . 1 . . . . . . . 7 . . Parts Fried 32 | . . . . . . . . . . . . 32 . . Impact Corruptions 37 | . . . . . . . . . . . . 37 . . Robots Melted 4 | . . . 1 . . . 3 . . . . . . . Combat Hostiles 4 | . . . 1 . . . 3 . . . . . . . Parts Melted 30 | . . 1 13 . . 1 12 2 . 1 . . . . Heat Transferred 13937 | . 500 200 5317 222 . 592 6327 729 . . . 50 . . Parts Sabotaged . | . . . . . . . . . . . . . . . Parts Stolen . | . . . . . . . . . . . . . . . Parts Stripped . | . . . . . . . . . . . . . . . Power Chain Reactions . | . . . . . . . . . . . . . . . Alert | -11 -10 -10 -9 -9 -9 -8 -8 -7 -7 -7 -7 -5 -5 -5 ------- Run | Yrd Mat Min Mat Min Exi Min Mat Fac Sto Rec Scr Fac Upp Upp Maximum Alert Level 2 | . . . 2 1 . . 2 1 . . . 1 . . Low Security (%) 81 | 100 100 100 42 67 . 100 74 70 100 100 . 90 . . Level 1 13 | . . . 32 32 . . 17 29 . . . 9 . . Level 2 5 | . . . 25 . . . 7 . . . . . . . Level 3 . | . . . . . . . . . . . . . . . Level 4 . | . . . . . . . . . . . . . . . Level 5 . | . . . . . . . . . . . . . . . High Security . | . . . . . . . . . . . . . . . Max Security . | . . . . . . . . . . . . . . . Peak Influence 650 | 5 122 55 650 281 . 81 416 273 173 97 . 366 . . Initial 251 | . . 45 4 251 . . . 181 109 48 . . . . Average 102 | 1 34 11 261 132 . 15 149 113 90 25 . 69 . . Influence Increases 6213 | 20 535 263 1514 80 . 166 1011 737 454 345 . 1028 . 60 Destroy 0b10 Robot/C 3260 | . 300 180 860 60 . 120 580 380 240 60 . 480 . . Destroy 0b10 Robot/NC 350 | 20 30 5 95 . . 5 45 50 5 55 . 40 . . Destroy Leader 876 | . 88 30 238 20 . 20 150 106 70 . . 154 . . Allied During Kill 248 | . . 12 . . . . . . 106 56 . 74 . . Successful Hack 147 | . 23 6 25 . . . 27 25 . 24 . 17 . . Select Force Hacks 300 | . 60 . 60 . . . 30 . . 150 . . . . Disable Machine 390 | . . . 135 . . 15 30 90 15 . . 105 . . Destroy Structure 312 | . 4 . 86 . . 6 29 56 3 . . 128 . . Lose Combat Pursuer 330 | . 30 30 15 . . . 120 30 15 . . 30 . 60 Influence Decreases 6173 | 20 417 369 880 726 . 166 612 895 570 470 . 789 209 50 Entered New Map 998 | . . 73 8 395 . . . 218 132 77 . . 89 6 Time Decay 4124 | 20 407 248 672 331 . 166 582 510 228 356 . 450 120 34 Lost Part 530 | . 10 10 50 . . . 30 100 150 . . 170 . 10 Lost Ally 267 | . . 38 . . . . . . 60 . . 169 . . Purge Threat 254 | . . . 150 . . . . 67 . 37 . . . . Squads Dispatched 44 | . 6 . 10 . . . 3 8 3 . . 14 . . Investigation 15 | . 3 . 6 . . . 1 2 1 . . 2 . . Extermination 6 | . . . . . . . . 3 . . . 3 . . Reinforcement 21 | . 3 . 3 . . . 2 3 2 . . 8 . . Assault 1 | . . . 1 . . . . . . . . . . . Garrison 1 | . . . . . . . . . . . . 1 . . Intercept . | . . . . . . . . . . . . . . . Searches Triggered . | . . . . . . . . . . . . . . . Construction Impeded . | . . . . . . . . . . . . . . . Haulers Reinforced 2 | . . . . . . . . 1 . . . 1 . . Active Scanning Responses . | . . . . . . . . . . . . . . . Cargo Convoy Interrupts 1 | . . . . . . . . . . . . 1 . . Stealth | -11 -10 -10 -9 -9 -9 -8 -8 -7 -7 -7 -7 -5 -5 -5 --------- Run | Yrd Mat Min Mat Min Exi Min Mat Fac Sto Rec Scr Fac Upp Upp Distress Signals 18 | . 3 . 3 . . . 6 2 1 . . 3 . . Communications Jammed . | . . . . . . . . . . . . . . . Distress Signals . | . . . . . . . . . . . . . . . Times Spotted 237 | . 30 9 57 9 . 5 49 24 9 6 . 32 . 7 Peak Tracking Total 11 | . 4 3 8 11 . 3 6 6 4 2 . 5 . 4 Tactical Retreats 20 | . 2 2 1 1 . . 7 2 1 . . 2 . 2 Traps | -11 -10 -10 -9 -9 -9 -8 -8 -7 -7 -7 -7 -5 -5 -5 ------- Run | Yrd Mat Min Mat Min Exi Min Mat Fac Sto Rec Scr Fac Upp Upp Traps Triggered 12 | . 2 . 3 . . . 1 2 . . . 4 . . Indirectly . | . . . . . . . . . . . . . . . Trap Hack Attempts . | . . . . . . . . . . . . . . . Triggered . | . . . . . . . . . . . . . . . Disarmed . | . . . . . . . . . . . . . . . Reprogrammed . | . . . . . . . . . . . . . . . Reused . | . . . . . . . . . . . . . . . Traps Extracted . | . . . . . . . . . . . . . . . Installed . | . . . . . . . . . . . . . . . Triggered . | . . . . . . . . . . . . . . . Machines | -11 -10 -10 -9 -9 -9 -8 -8 -7 -7 -7 -7 -5 -5 -5 ---------- Run | Yrd Mat Min Mat Min Exi Min Mat Fac Sto Rec Scr Fac Upp Upp Machines Disabled 27 | . . . 9 . . 1 2 6 1 . . 7 1 . Max in Single Turn 5 | . . . 3 . . 1 1 5 . . . 5 1 . Garrison Access 1 | . . . . . . . . 1 . . . . . . Machines Repaired . | . . . . . . . . . . . . . . . Machines Dismantled . | . . . . . . . . . . . . . . . Machines Sabotaged . | . . . . . . . . . . . . . . . Overloaded Fab Kills . | . . . . . . . . . . . . . . . Hacking | -11 -10 -10 -9 -9 -9 -8 -8 -7 -7 -7 -7 -5 -5 -5 --------- Run | Yrd Mat Min Mat Min Exi Min Mat Fac Sto Rec Scr Fac Upp Upp Machines Accessed 70 | . 8 1 12 . 1 . 8 11 2 11 5 10 . 1 Terminals 38 | . 5 1 9 . . . 5 5 2 6 . 4 . 1 Fabricators 4 | . . . . . . . . 2 . . . 2 . . Repair Stations 7 | . 1 . 1 . . . 2 2 . . . 1 . . Recycling Units 13 | . 2 . 2 . . . 1 1 . 5 . 2 . . Scanalyzers . | . . . . . . . . . . . . . . . Garrison Access 2 | . . . . . . . . 1 . . . 1 . . Total Hacks 197 | . 25 2 38 . 1 . 22 36 6 27 14 25 . 1 Successful 111 | . 15 1 20 . 1 . 11 20 2 15 14 11 . 1 Failed 85 | . 10 1 17 . . . 11 16 4 12 . 14 . . Catastrophic 14 | . 1 . 1 . . . 3 1 1 3 . 4 . . Database Lockouts 1 | . . . 1 . . . . . . . . . . . Manual 91 | . 13 2 26 . . . 12 14 2 11 . 11 . . Terminals 118 | . 20 2 31 . . . 13 21 6 16 . 8 . 1 Fabricators 11 | . . . . . . . . 5 . . . 6 . . Repair Stations 20 | . 2 . 2 . . . 7 6 . . . 3 . . Recycling Units 30 | . 3 . 5 . . . 2 2 . 11 . 7 . . Scanalyzers . | . . . . . . . . . . . . . . . Garrison Access 3 | . . . . . . . . 2 . . . 1 . . Terminal Hacks 42 | . 5 1 5 . 1 . 1 7 1 4 14 2 . 1 Record 11 | . . . . . 1 . . . . . 9 . . 1 Part Schematic 3 | . . . . . . . . 2 . . . 1 . . Robot Analysis 8 | . . 1 3 . . . . . . . 4 . . . Prototype ID Bank 5 | . 2 . . . . . . . . 3 . . . . Open Door 1 | . . . . . . . . . 1 . . . . . Branch Access Points 2 | . . . . . . . . 1 . . . 1 . . Emergency Access Points 1 | . 1 . . . . . . . . . . . . . Terminal Index 2 | . 1 . . . . . . 1 . . . . . . Alert Level 2 | . . . 1 . . . . 1 . . . . . . Unreport Threat 3 | . . . 1 . . . . 1 . 1 . . . . Locate Traps 1 | . 1 . . . . . . . . . . . . . Transport Status 1 | . . . . . . . . 1 . . . . . . Zone Layout 1 | . . . . . . . 1 . . . . . . . Proto ID Catalog 1 | . . . . . . . . . . . 1 . . . Fabricator Hacks 7 | . . . . . . . . 2 . . . 5 . . Network Status 2 | . . . . . . . . 1 . . . 1 . . Load Schematic 3 | . . . . . . . . 1 . . . 2 . . Build 2 | . . . . . . . . . . . . 2 . . Repair Station Hacks 14 | . 2 . 1 . . . 6 4 . . . 1 . . Scan Component 8 | . 1 . 1 . . . 3 2 . . . 1 . . Repair 6 | . 1 . . . . . 3 2 . . . . . . Recycling Unit Hacks 11 | . 1 . 2 . . . 1 2 . 5 . . . . Retrieve Matter 1 | . . . . . . . . 1 . . . . . . Retrieve Components 10 | . 1 . 2 . . . 1 1 . 5 . . . . Scanalyzer . | . . . . . . . . . . . . . . . Garrison Access Hacks 1 | . . . . . . . . 1 . . . . . . Seal Access 1 | . . . . . . . . 1 . . . . . . Unauthorized Hacks 36 | . 7 . 12 . . . 3 4 1 6 . 3 . . Terminals 23 | . 5 . 10 . . . 2 3 1 1 . 1 . . Botnet 12 | . 2 . 3 . . . 2 2 1 1 . 1 . . Operators 2 | . 1 . 1 . . . . . . . . . . . Skim 9 | . 2 . 6 . . . . 1 . . . . . . Fabricators 1 | . . . . . . . . 1 . . . . . . Recompile 1 | . . . . . . . . 1 . . . . . . Repair Stations . | . . . . . . . . . . . . . . . Recycling Units 12 | . 2 . 2 . . . 1 . . 5 . 2 . . Tunnel 10 | . 2 . 2 . . . 1 . . 5 . . . . Fedlink 2 | . . . . . . . . . . . . 2 . . Scanalyzers . | . . . . . . . . . . . . . . . Garrison Access . | . . . . . . . . . . . . . . . Data Cores Recovered 1 | . 1 . . . . . . . . . . . . . Used . | . . . . . . . . . . . . . . . Hacking Detections 48 | . 6 1 9 . . . 7 7 2 7 . 9 . . Full Trace Events 2 | . . . 1 . . . . . 1 . . . . . Feedback Events . | . . . . . . . . . . . . . . . Feedback Blocked . | . . . . . . . . . . . . . . . Robot Schematics Acquired . | . . . . . . . . . . . . . . . Robots Built . | . . . . . . . . . . . . . . . Authchips . | . . . . . . . . . . . . . . . Time . | . . . . . . . . . . . . . . . Total Robot Build Rating . | . . . . . . . . . . . . . . . Part Schematics Acquired 3 | . . . . . . . . 2 . . . 1 . . Parts Built 2 | . . . . . . . . . . . . 2 . . Authchips 2 | . . . . . . . . . . . . 2 . . Time 137 | . . . . . . . . . . . . 137 . . Total Part Build Rating 12 | . . . . . . . . . . . . 12 . . Parts Repaired 6 | . 1 . . . . . 3 2 . . . . . . Time 222 | . 26 . . . . . 114 82 . . . . . . Parts Recycled . | . . . . . . . . . . . . . . . Recycled Matter . | . . . . . . . . . . . . . . . Retrieved Matter . | . . . . . . . . . . . . . . . Retrieved Components 45 | . 2 . 18 . . . 6 2 . 17 . . . . Parts Scanalyzed . | . . . . . . . . . . . . . . . Part Schematics Acquired . | . . . . . . . . . . . . . . . Parts Damaged . | . . . . . . . . . . . . . . . Bothacking | -11 -10 -10 -9 -9 -9 -8 -8 -7 -7 -7 -7 -5 -5 -5 ------------ Run | Yrd Mat Min Mat Min Exi Min Mat Fac Sto Rec Scr Fac Upp Upp Used RIF Installer . | . . . . . . . . . . . . . . . Robots Hacked 9 | . . . . 1 4 . . . . 1 3 . . . Non-combat 3 | . . . . . 3 . . . . . . . . . Combat 6 | . . . . 1 1 . . . . 1 3 . . . Robot Hacks Applied 9 | . . . . 1 4 . . . . 1 3 . . . parse_system 9 | . . . . 1 4 . . . . 1 3 . . . Relay Couplers Released . | . . . . . . . . . . . . . . . Fabnet Peak Effective % . | . . . . . . . . . . . . . . . Robots Rewired 3 | . . . . . . . . . . 3 . . . . Allies Hacked . | . . . . . . . . . . . . . . . Hacks Repelled . | . . . . . . . . . . . . . . . Allies | -11 -10 -10 -9 -9 -9 -8 -8 -7 -7 -7 -7 -5 -5 -5 -------- Run | Yrd Mat Min Mat Min Exi Min Mat Fac Sto Rec Scr Fac Upp Upp Total Allies 17 | . . 3 . . . . . . 10 3 . . 1 . Largest Group 10 | . . 3 . . . . . . 10 9 8 8 1 . Highest-Rated Group 178 | . . 40 . . . . . . 173 178 162 162 165 . Highest-Rated Ally 165 | . . 16 . . . . . . 29 32 32 32 165 . Total Orders 1 | . . . . . . . . . . . . 1 . . EXPLORE 1 | . . . . . . . . . . . . 1 . . Ally Attacks 229 | . . 29 . . . . . . 60 71 . 69 . . Total Damage 3222 | . . 316 . . . . . . 879 947 . 1080 . . Kills 24 | . . 6 . . . . . . 7 4 . 7 . . Allies Corrupted . | . . . . . . . . . . . . . . . Allies Melted . | . . . . . . . . . . . . . . . Intel | -11 -10 -10 -9 -9 -9 -8 -8 -7 -7 -7 -7 -5 -5 -5 ------- Run | Yrd Mat Min Mat Min Exi Min Mat Fac Sto Rec Scr Fac Upp Upp Active Infowar (turns) 19759 | 6 2150 1888 1571 719 18 1155 2405 1870 416 1791 3413 1917 243 197 Terrain 3645 | . . . . . . . 832 1831 66 . . 665 189 62 Seismic 18839 | 6 2150 1888 1571 719 18 1155 2398 1701 416 1791 3413 1613 . . Machine Analysis 2356 | . . . . . . . . . . . . 1916 243 197 ECM 53 | . . . . . . . . . . . . 17 . 36 Robot Analysis Total 8 | . . 1 3 . . . . . . . 4 . . . Derelict Logs Recovered 2 | . . 1 . 1 . . . . . . . . . . Drone Launches 2 | . . . . . . . . . . . . 2 . . Drone Recoveries . | . . . . . . . . . . . . . . . Exploration | -11 -10 -10 -9 -9 -9 -8 -8 -7 -7 -7 -7 -5 -5 -5 ------------- Run | Yrd Mat Min Mat Min Exi Min Mat Fac Sto Rec Scr Fac Upp Upp Turns Passed 23126 | 127 2485 1896 3015 803 530 1184 2884 2118 516 1793 3418 1917 243 197 Spaces Moved 8904 | 40 720 562 984 326 230 506 985 722 191 746 1393 989 294 216 Core 569 | . . . . . . . . . . . . 59 294 216 Treads 7059 | . 636 562 984 326 230 506 985 710 8 501 1393 218 . . Legs 836 | 40 84 . . . . . . . . . . 712 . . Wheels 440 | . . . . . . . . 12 183 245 . . . . Hover . | . . . . . . . . . . . . . . . Flight . | . . . . . . . . . . . . . . . Fastest Speed 50 | 120 120 320 225 225 225 225 228 145 125 155 236 50 50 50 Average Speed 223 | 120 292 320 236 225 225 225 236 246 163 222 240 152 53 50 Slowest Speed 480 | 120 480 320 320 225 225 225 242 320 480 320 241 270 150 50 Overloaded Moves . | . . . . . . . . . . . . . . . Propulsion Burnouts . | . . . . . . . . . . . . . . . Robots Hopped . | . . . . . . . . . . . . . . . Potential Cave-ins . | . . . . . . . . . . . . . . . Cave-ins Triggered . | . . . . . . . . . . . . . . . Exploration Rate (%) 61 | 4 98 98 87 51 64 93 75 21 32 99 86 25 45 39 Regions Visited 14 Branch Regions 9 Pre-discovered Areas 14 | . 2 . 3 1 1 . 1 . . 5 . 1 . . Known Exits Taken 6 | . . . 1 . . 1 1 1 . 1 . 1 . . Unknown Exits Taken 8 | 1 1 1 . 1 1 . . . 1 . 1 . 1 . Scrap Searched 11 | . . 1 . 1 . 1 . . . . 6 . 2 . Spaces Dug 26 | . 2 . 14 . . . . 3 . . . 7 . . Terrain Destroyed 264 | . 2 . 106 . . 6 24 65 2 . . 59 . . Melee 8 | . . . . . . . . 2 . . . 6 . . Projectile 18 | . 2 . 3 . . . . 3 2 . . 8 . . AOE 238 | . . . 103 . . 6 24 60 . . . 45 . . Terrain Rammed . | . . . . . . . . . . . . . . . Walls Destroyed . | . . . . . . . . . . . . . . . Machines Disabled . | . . . . . . . . . . . . . . . Actions | -11 -10 -10 -9 -9 -9 -8 -8 -7 -7 -7 -7 -5 -5 -5 --------- Run | Yrd Mat Min Mat Min Exi Min Mat Fac Sto Rec Scr Fac Upp Upp Total 11127 | 86 921 625 1413 370 240 532 1353 933 347 852 1475 1306 369 305 Wait 925 | 28 78 31 183 20 3 6 164 68 94 42 25 48 48 87 Move 8890 | 39 719 561 983 325 229 505 984 721 190 745 1392 988 293 216 Hop . | . . . . . . . . . . . . . . . Pick Up 128 | 2 12 7 16 1 . 3 23 12 6 7 11 25 3 . Fast Attach 92 | 1 1 1 13 . . . 5 9 8 7 12 31 4 . Attach 75 | . 2 2 5 2 . . 6 12 7 . 3 30 5 1 Detach 35 | . . . 4 . . . 3 5 1 1 2 15 3 1 Swap 192 | . 17 5 47 7 3 5 48 27 5 1 2 25 . . Drop 161 | . 6 . 30 . 1 2 25 5 1 13 25 50 3 . Fire 484 | 16 76 14 127 14 . 10 91 40 15 14 . 57 10 . Melee 77 | . . . . 1 4 . 1 24 17 1 3 26 . . Ram 3 | . . . . . . . . . 1 . . 2 . . Kick 8 | . . . . . . . . . . . . 8 . . Crush 40 | . 10 4 5 . . 1 3 10 . 6 . 1 . . Escape Stasis . | . . . . . . . . . . . . . . . Rewire 17 | . . . . . . . . . 2 15 . . . . Trap . | . . . . . . . . . . . . . . . Miscellaneous . | . . . . . . . . . . . . . . . Route ------- -11/Scrapyard -10/Materials (discovered 4 exits: *Mat x3 / *Min) -10/Mines (discovered 2 exits: *Mat x2) -9/Materials (discovered 5 exits: *Mat x3 / *Min x2) -9/Mines (discovered 3 exits: *Mat x2 / *Exi) -9/Exiles -8/Mines -8/Materials (discovered 2 exits: *Fac x2) -7/Factory (discovered 4 exits: *Sto x2 / *Low x2) -7/Storage -7/Recycling (discovered 2 exits: *Fac / *Scr) -7/Scraptown (discovered 2 exits: *Fac x2) -5/Factory (discovered 4 exits: *Fac x2 / *Upp x2) -5/Upper Caves (discovered 2 exits: *Upp / *Fac) -5/Upper Caves History --------- Turn | Location | Event 10 | -11/Scrapyard | Discovered new exit (range 3) 128 | -11/Scrapyard | Entered Materials 318 | -10/Materials | Build established: Mutant 339 | -10/Materials | Discovered new exit (range 8) 804 | -10/Materials | Discovered new exit (range 8) 1282 | -10/Materials | Repaired Lgt. Treads 1287 | -10/Materials | Discovered new exit (range 14) 1833 | -10/Materials | Core integrity fell below 50% 2057 | -10/Materials | Discovered new exit (range 15) 2613 | -10/Materials | Entered Mines 2861 | -10/Mines | Received a Rocket Launcher from a helpful Derelict 2935 | -10/Mines | Discovered new exit (range 7) 2973 | -10/Mines | Assisted by bots powering up and referring to "LRC-V3" 3558 | -10/Mines | Discovered new exit (range 7) 3788 | -10/Mines | Learned Materials interactive machine intel 4509 | -10/Mines | Entered Materials 4509 | -9/Materials | Evolved 2 slots: Propulsion x1, Utility x1 4510 | -9/Materials | Loaded intel: 18 interactive machine locations 5245 | -9/Materials | Discovered new exit (range 5) 5871 | -9/Materials | Central database locked down 5973 | -9/Materials | Discovered new exit (range 15) 6460 | -9/Materials | Build established: Scavenger-Mutant 6753 | -9/Materials | Core integrity fell below 50% 6777 | -9/Materials | Discovered new exit (range 14) 6861 | -9/Materials | Build established: Mutant 6899 | -9/Materials | Learned location of 1 exit from Recycling 6934 | -9/Materials | Identified exit to Mines 6958 | -9/Materials | Learned Storage security intel 6975 | -9/Materials | Learned Storage non-interactive machine intel 6977 | -9/Materials | Learned location of Zion (-7) 6988 | -9/Materials | Learned Storage security intel 7309 | -9/Materials | First assault squad dispatched 7524 | -9/Materials | Entered Mines 7525 | -9/Mines | Met a Derelict testing a Signal Generator 7525 | -9/Mines | Identified exit to Materials 7532 | -9/Mines | Found Signal Generator 7611 | -9/Mines | YI-UF0 nonchalantly dropped a Grenade Launcher on the ground 8121 | -9/Mines | Assembled infested the area 8185 | -9/Mines | Met 8R-AWN 8276 | -9/Mines | Destroyed YI-UF0 8318 | -9/Mines | Discovered new exit (range 5) 8327 | -9/Mines | Entered Exiles 8384 | -9/Exiles | Welcomed by 8R-AWN 8423 | -9/Exiles | Met EX-HEX 8510 | -9/Exiles | Met EX-DEC 8618 | -9/Exiles | Met EX-BIN 8831 | -9/Exiles | Discovered new exit (range 10) 8857 | -9/Exiles | Entered Mines 9615 | -8/Mines | Discovered exit to Materials (range 5) 10041 | -8/Mines | Entered Materials 10041 | -8/Materials | Evolved 2 slots: Propulsion x1, Utility x1 10696 | -8/Materials | Repaired Hrd. Medium Armor Plating 10744 | -8/Materials | Repaired Adv. Treads 11067 | -8/Materials | Discovered new exit (range 10) 11129 | -8/Materials | Identified exit to Factory 11588 | -8/Materials | Build established: Scavenger-Mutant 11823 | -8/Materials | Repaired Hrd. Medium Armor Plating? 11937 | -8/Materials | Build established: Mutant 12763 | -8/Materials | Discovered exit to Factory (range 15) 12925 | -8/Materials | Entered Factory 12925 | -7/Factory | Evolved 2 slots: Utility x2 13131 | -7/Factory | Identified exit to Storage 13131 | -7/Factory | Identified exit to Lower Caves 13242 | -7/Factory | Build established: Scavenger-Mutant 13925 | -7/Factory | Repaired Imp. Shield Generator? 13978 | -7/Factory | Repaired Arm. Treads 14743 | -7/Factory | Build established: Hacker-Mutant 14843 | -7/Factory | Lost 6 parts (2p2n2w) 14848 | -7/Factory | System corruption reached 10% 15043 | -7/Factory | Entered Storage 15045 | -7/Storage | Loaded intel: 18 non-interactive machine locations 15168 | -7/Storage | Core integrity fell below 50% 15204 | -7/Storage | Lost 13 parts (1p4n6u2w) 15243 | -7/Storage | Assisted by bots powering up and referring to "LRC-V3" 15535 | -7/Storage | Used back door to open Recycling access 15535 | -7/Storage | Discovered new exit (range 4) 15557 | -7/Storage | Build established: Commander-Mutant 15559 | -7/Storage | Entered Recycling 15559 | -7/Recycling | Accompanied by 7 allies 15560 | -7/Recycling | Identified exit to Scraptown 16895 | -7/Recycling | Discovered new exit (range 16) 17280 | -7/Recycling | Scanned before Scraplab entrance 17316 | -7/Recycling | Entered Scraplab 17352 | -7/Recycling | Entered Scraptown 17352 | -7/Scraptown | Accompanied by 8 allies 17352 | -7/Scraptown | System corruption cleaned by C-Scrubber 17889 | -7/Scraptown | Visited Comm Corps 17923 | -7/Scraptown | Visited Cave Peace 17942 | -7/Scraptown | Visited Cyclists 18009 | -7/Scraptown | Visited Symbiants 18035 | -7/Scraptown | Visited Fellowship of the Rings 18069 | -7/Scraptown | Visited SPCMW 18112 | -7/Scraptown | Visited Assassins FH 18893 | -7/Scraptown | Discovered new exit (range 11) 19108 | -7/Scraptown | Visited UFD Registry 19108 | -7/Scraptown | Registered with UFD as "Wirewalker" 19166 | -7/Scraptown | Visited Junk Cannon Lab 19186 | -7/Scraptown | Found Prototype Special Weapon 19193 | -7/Scraptown | Identified Junk Cannon 19242 | -7/Scraptown | Visited Botcube Research 19251 | -7/Scraptown | Found Lrg. Botcube 19281 | -7/Scraptown | Received an X-ray algorithm 19404 | -7/Scraptown | Visited Analyses Database 19473 | -7/Scraptown | Visited Science Testing Area 19519 | -7/Scraptown | Visited Abandonware Association 19543 | -7/Scraptown | Learned abandonware demo "REPAIR.EXE" 19543 | -7/Scraptown | Learned abandonware demo "MELTYB.EXE" 19596 | -7/Scraptown | Visited Science Guys 19660 | -7/Scraptown | Visited Scrap Suit Storage 19694 | -7/Scraptown | Visited DA-N13 Charitable Foundation 19726 | -7/Scraptown | Found DCF Scrap (29 items) 19926 | -7/Scraptown | Visited Derelict Rescue Squad 19958 | -7/Scraptown | Visited LU-1G1's Boring Crew 20613 | -7/Scraptown | Met Optimus 20613 | -7/Scraptown | Accepted into 0bPrime 20748 | -7/Scraptown | Discovered new exit (range 5) 20770 | -7/Scraptown | Entered Factory 20770 | -5/Factory | Accompanied by 8 allies 20770 | -5/Factory | Evolved 4 slots: Power x1, Utility x3 20996 | -5/Factory | Lost 3 allies 21140 | -5/Factory | Loaded intel: 8 recycling unit locations 21207 | -5/Factory | Discovered new exit (range 13) 21309 | -5/Factory | Build established: Hacker-Mutant 21315 | -5/Factory | Found Prototype Launcher 21315 | -5/Factory | Identified Tesla Bomb Launcher 21555 | -5/Factory | Discovered new exit (range 14) 21869 | -5/Factory | Identified exit to Factory 21988 | -5/Factory | Build established: Mutant 21989 | -5/Factory | Identified exit to Upper Caves 22002 | -5/Factory | Cargo convoy interrupted 22151 | -5/Factory | Learned location of Protoforge (-2) 22297 | -5/Factory | Fabricated Thunder Leg (x2) 22577 | -5/Factory | System corruption reached 10% 22598 | -5/Factory | Garrison activated, responded to threat 22658 | -5/Factory | Core integrity fell below 50% 22687 | -5/Factory | Entered Upper Caves 22705 | -5/Upper Caves | Lost 12 parts (1p4n6u1w) 22793 | -5/Upper Caves | Discovered new exit (range 15) 22831 | -5/Upper Caves | ME-RLN showed up to help 22836 | -5/Upper Caves | ME-RLN revealed a hidden path 22888 | -5/Upper Caves | Found Alien Artifact 22888 | -5/Upper Caves | Identified Dimensional Node Initializer 22888 | -5/Upper Caves | Initialized slip node 22930 | -5/Upper Caves | Entered another Upper Caves area 22993 | -5/Upper Caves | Attracted the attention of an 0b10 checkpoint 23069 | -5/Upper Caves | Core integrity fell below 20% 23107 | -5/Upper Caves | Lost 3 parts (1n1u1w) 23127 | -5/Upper Caves | Destroyed by P-70 Sage with Tesla Rifle Last Messages --------------- 22949_ System corrupted: Substantial component data lost. 22973_ System corrupted: Matter fused (-10). 22983_ Connecting with Outpost Terminal... 22983_ Current location identified: Upper Caves >>Query($taT^5 R3pOr+ 0000) .sisT3m C0rRvpTE_ 22992_ Penetrated by Slug. 22992_ Adv. Terrain Scanner destroyed. 22993_ Y-64 Sentinel: "INTERCEPTING UNREGISTERED DERELICT." 23000_ System corrupted: Matter fused (-6). 23008_ Slug penetrates Wall. 23016_ System corrupted: Heat flow error (+171). 23032_ 9